fUST/lending_fUST_20250319
["ID","MTS","AMOUNT","RATE_DAILY","PERIOD"]
[356379564,1742347599166,-177.10636203,0.00010479,2]
[356379587,1742347832582,-1599.99999901,9.88e-05,2]
[356379588,1742347832591,-6957.46334486,0.00010464,2]
[356379589,1742347832603,-695.70415592,0.00010479,2]
[356379590,1742347832615,-150.0,0.00010579,2]
[356379591,1742347832624,-541.0,0.00010579,2]
[356379592,1742347832635,-2267.0,0.00010579,2]
[356379593,1742347832645,-1914.0,0.00010579,2]
[356379594,1742347832655,-399.0,0.00010579,2]
[356379595,1742347832665,-507.55645825,0.00010631,2]
[356379596,1742347832675,-500.0,0.00010631,2]
[356379597,1742347832685,-500.0,0.00010631,2]
[356379598,1742347832695,-432.05851714,0.00010631,2]
[356379599,1742347832705,-12458.93820146,0.00010632,2]
[356379600,1742347832869,-833.90657078,0.00010632,2]
[356379601,1742347832879,-160.0,0.00010632,2]
[356379602,1742347832889,-417.85479977,0.00010632,2]
[356379603,1742347832899,-160.0,0.00010632,2]
[356379604,1742347832908,-500.74153086,0.00010689,2]
[356379605,1742347832917,-2636.81,0.00010708,2]
[356379606,1742347832927,-500.0,0.00010766,2]
[356379607,1742347832938,-11012.82659241,0.000109,2]
[356379608,1742347832948,-2355.77730739,0.0001095,2]
[356379609,1742347832957,-486.557966,0.00010959,2]
[356379610,1742347832966,-313.74,0.00010959,2]
[356379611,1742347832976,-261.45,0.00010959,2]
[356379612,1742347832985,-217.87,0.00010959,2]
[356379613,1742347832994,-181.56,0.00010959,2]
[356379614,1742347833003,-151.3,0.00010959,2]
[356379615,1742347833013,-756.53,0.00010959,2]
[356379616,1742347833023,-10029.999999,0.00011,5]
[356379617,1742347833032,-500.0,0.00011899,2]
[356379618,1742347833042,-2636.81,0.00011899,2]
[356379619,1742347833051,-2212.16537013,0.0001253,2]
[356379620,1742347833061,-600.0,0.00012623,2]
[356379621,1742347833071,-500.0,0.00012629,2]
[356379622,1742347833081,-475.81072773,0.00012629,2]
[356379623,1742347833090,-500.0,0.00012629,2]
[356379624,1742347833100,-2636.81,0.00012629,2]
[356379625,1742347833110,-2636.81,0.00012629,2]
[356379626,1742347833120,-500.0,0.0001263,2]
[356379627,1742347833130,-500.0,0.0001263,2]
[356379628,1742347833140,-500.0,0.0001263,2]
[356379629,1742347833150,-500.0,0.0001263,2]
[356379630,1742347833159,-500.0,0.0001263,2]
[356379631,1742347833169,-500.0,0.0001263,2]
[356379632,1742347833179,-500.0,0.0001263,2]
[356379633,1742347833188,-500.0,0.0001263,2]
[356379634,1742347833198,-500.0,0.0001263,2]
[356379635,1742347833208,-562.73,0.0001263,2]
[356379636,1742347833218,-2636.81,0.0001263,2]
[356379637,1742347833227,-2636.81,0.0001263,2]
[356379638,1742347833237,-2636.81,0.0001263,2]
[356379639,1742347833247,-2636.81,0.0001263,2]
[356379640,1742347833256,-2636.81,0.0001263,2]
[356379641,1742347833267,-2636.81,0.0001263,2]
[356379642,1742347833276,-2636.81,0.0001263,2]
[356379643,1742347833286,-2636.81,0.0001263,2]
[356379644,1742347833296,-2636.81,0.0001263,2]
[356379645,1742347833305,-192064.49366335,0.00012631,2]
[356379646,1742347833315,-500.0,0.00012673,2]
[356379647,1742347833325,-1208.71931891,0.00012678,2]
[356379648,1742347833335,-2636.81,0.00012783,2]
[356379649,1742347833345,-2212.16537012,0.00012797,2]
[356379650,1742347833355,-4296.16793654,0.000129,2]
[356379651,1742347833364,-2212.16537012,0.00013065,2]
[356379652,1742347833374,-1234.3104579,0.00013279,2]
[356379653,1742347833384,-797.51472581,0.00013293,2]
[356379654,1742347833394,-151.0,0.000133,2]
[356379655,1742347833403,-2212.16537012,0.00013332,2]
[356379656,1742347833412,-151.0,0.000134,2]
[356379657,1742347833421,-151.0,0.000134,2]
[356379658,1742347833431,-151.0,0.000135,2]
[356379659,1742347833441,-151.0,0.000135,2]
[356379660,1742347833450,-151.0,0.000135,2]
[356379661,1742347833460,-343.902,0.00013579,2]
[356379662,1742347833469,-3000.0,0.00013599,2]
[356379663,1742347833479,-2212.16537012,0.00013599,2]
[356379664,1742347833488,-151.0,0.000136,2]
[356379665,1742347833498,-151.0,0.000136,2]
[356379666,1742347833508,-151.0,0.000136,2]
[356379667,1742347833518,-2636.81,0.00013672,2]
[356379668,1742347833528,-500.0,0.00013673,2]
[356379669,1742347833537,-500.0,0.00013673,2]
[356379670,1742347833547,-500.0,0.00013673,2]
[356379671,1742347833559,-500.0,0.00013673,2]
[356379672,1742347833569,-500.0,0.00013673,2]
[356379673,1742347833578,-500.0,0.00013673,2]
[356379674,1742347833587,-500.0,0.00013673,2]
[356379675,1742347833600,-500.0,0.00013673,2]
[356379676,1742347833609,-500.0,0.00013673,2]
[356379677,1742347833620,-500.0,0.00013673,2]
[356379678,1742347833630,-162.76458538,0.00013673,2]
[356379679,1742347833639,-500.0,0.00013673,2]
[356379680,1742347833649,-500.0,0.00013673,2]
[356379681,1742347833658,-500.0,0.00013673,2]
[356379682,1742347833668,-500.0,0.00013673,2]
[356379683,1742347833678,-500.0,0.00013673,2]
[356379684,1742347833687,-500.0,0.00013673,2]
[356379685,1742347833697,-500.0,0.00013673,2]
[356379686,1742347833707,-500.0,0.00013673,2]
[356379687,1742347833717,-500.0,0.00013673,2]
[356379688,1742347833727,-500.0,0.00013673,2]
[356379689,1742347833736,-500.0,0.00013673,2]
[356379690,1742347833746,-463.67944826,0.00013673,2]
[356379691,1742347833755,-500.0,0.00013673,2]
[356379692,1742347833766,-188.79163507,0.00013689,2]
[356379693,1742347833776,-2636.81,0.00013697,2]
[356379694,1742347833785,-2636.81,0.00013697,2]
[356379695,1742347833795,-3000.0,0.00013698,15]
[356379696,1742347833805,-3000.0,0.00013698,15]
[356379697,1742347833815,-3000.0,0.00013698,15]
[356379698,1742347833824,-3000.0,0.00013698,15]
[356379699,1742347833834,-150.0,0.00013698,2]
[356379700,1742347833844,-2636.81,0.00013698,2]
[356379701,1742347833854,-2636.81,0.00013698,2]
[356379702,1742347833864,-2636.81,0.00013698,2]
[356379703,1742347833873,-2636.81,0.00013698,2]
[356379704,1742347833883,-2636.81,0.00013698,2]
[356379705,1742347833893,-2636.81,0.00013698,2]
[356379706,1742347833902,-2636.84374339,0.00013698,2]
[356379707,1742347833911,-317.0,0.00013698,2]
[356379708,1742347833921,-317.0,0.00013698,2]
[356379709,1742347833930,-354.0,0.00013698,2]
[356379710,1742347833939,-317.0,0.00013698,2]
[356379711,1742347833949,-317.0,0.00013698,2]
[356379712,1742347833959,-354.0,0.00013698,2]
[356379713,1742347833968,-317.0,0.00013698,2]
[356379714,1742347833978,-354.0,0.00013698,2]
[356379715,1742347833987,-317.0,0.00013698,2]
[356379716,1742347833997,-354.0,0.00013698,2]
[356379717,1742347834006,-317.0,0.00013698,2]
[356379718,1742347834016,-348.0,0.00013698,2]
[356379719,1742347834026,-317.0,0.00013698,2]
[356379720,1742347834036,-317.0,0.00013698,2]
[356379721,1742347834047,-317.0,0.00013698,2]
[356379722,1742347834056,-317.0,0.00013698,2]
[356379723,1742347834066,-182.93612673,0.00013698,2]
[356379724,1742347834076,-400.0,0.00013699,7]
[356379725,1742347834086,-500.0,0.00013699,2]
[356379726,1742347834095,-500.0,0.00013699,2]
[356379727,1742347834105,-500.0,0.00013699,2]
[356379728,1742347834115,-500.0,0.00013699,2]
[356379729,1742347834125,-500.0,0.00013699,2]
[356379730,1742347834134,-500.0,0.00013699,2]
[356379731,1742347834144,-500.0,0.00013699,2]
[356379732,1742347834153,-500.0,0.00013699,2]
[356379733,1742347834163,-266.0,0.00013699,2]
[356379734,1742347834174,-500.0,0.00013699,2]
[356379735,1742347834183,-500.0,0.00013699,2]
[356379736,1742347834193,-500.0,0.00013699,2]
[356379737,1742347834203,-500.0,0.00013699,2]
[356379738,1742347834212,-500.0,0.00013699,2]
[356379739,1742347834222,-500.0,0.00013699,2]
[356379740,1742347834232,-500.0,0.00013699,2]
[356379741,1742347834241,-500.0,0.00013699,2]
[356379742,1742347834250,-500.0,0.00013699,2]
[356379743,1742347834260,-500.0,0.00013699,2]
[356379744,1742347834272,-500.0,0.00013699,2]
[356379745,1742347834282,-500.0,0.00013699,2]
[356379746,1742347834291,-551.54646758,0.00013699,2]
[356379747,1742347834300,-486.557966,0.00013699,2]
[356379748,1742347834310,-6179.070905,0.00013699,2]
[356379749,1742347834319,-2071.8751765,0.00013699,2]
[356379750,1742347834329,-2817.8787512,0.00013699,2]
[356379751,1742347834339,-16122.69978002,0.00013699,2]
[356379772,1742347838603,-9315.20961164,0.00013699,2]
[356379773,1742347838947,-36696.04865274,0.00013699,2]
[356379774,1742347838957,-538.283057,0.00013699,2]
[356379775,1742347838968,-14895.4344979,0.00013699,2]
[356379776,1742347838978,-470.392872,0.00013699,2]
[356379777,1742347838988,-470.392872,0.00013699,2]
[356379778,1742347838999,-470.392872,0.00013699,2]
[356379779,1742347839008,-470.392872,0.00013699,2]
[356379780,1742347839019,-470.392872,0.00013699,2]
[356379781,1742347839028,-470.392872,0.00013699,2]
[356379782,1742347839037,-470.392872,0.00013699,2]
[356379783,1742347839047,-470.392872,0.00013699,2]
[356379784,1742347839057,-470.392872,0.00013699,2]
[356379785,1742347839067,-470.392872,0.00013699,2]
[356379786,1742347839076,-470.392872,0.00013699,2]
[356379787,1742347839086,-470.392872,0.00013699,2]
[356379788,1742347839095,-470.392872,0.00013699,2]
[356379789,1742347839105,-470.392872,0.00013699,2]
[356379790,1742347839115,-470.392872,0.00013699,2]
[356379791,1742347839125,-470.392872,0.00013699,2]
[356379792,1742347839134,-470.392872,0.00013699,2]
[356379793,1742347839144,-470.392872,0.00013699,2]
[356379794,1742347839154,-470.392869,0.00013699,2]
[356379795,1742347839163,-446.539921,0.00013699,2]
[356379796,1742347839173,-446.539921,0.00013699,2]
[356379797,1742347839182,-446.539921,0.00013699,2]
[356379798,1742347839192,-446.539921,0.00013699,2]
[356379799,1742347839205,-446.539921,0.00013699,2]
[356379800,1742347839214,-446.539921,0.00013699,2]
[356379801,1742347839224,-446.539921,0.00013699,2]
[356379802,1742347839235,-446.539921,0.00013699,2]
[356379803,1742347839245,-446.539921,0.00013699,2]
[356379804,1742347839254,-446.539921,0.00013699,2]
[356379805,1742347839263,-446.539921,0.00013699,2]
[356379806,1742347839273,-446.539921,0.00013699,2]
[356379807,1742347839282,-446.539921,0.00013699,2]
[356379808,1742347839292,-446.539921,0.00013699,2]
[356379809,1742347839301,-446.539921,0.00013699,2]
[356379810,1742347839311,-446.539921,0.00013699,2]
[356379811,1742347839323,-446.539921,0.00013699,2]
[356379812,1742347839333,-446.539921,0.00013699,2]
[356379813,1742347839344,-446.539921,0.00013699,2]
[356379814,1742347839355,-446.53991749,0.00013699,2]
[356379815,1742347839365,-150.33,0.00013699,2]
[356379816,1742347839374,-500.0,0.00013699,2]
[356379817,1742347839384,-500.0,0.00013699,2]
[356379818,1742347839394,-500.0,0.00013699,2]
[356379819,1742347839403,-582.0,0.00013699,2]
[356379820,1742347839414,-150.35,0.00013699,2]
[356379821,1742347839424,-500.0,0.00013699,2]
[356379822,1742347839434,-17657.91962322,0.00013699,2]
[356379823,1742347839444,-500.0,0.00013699,2]
[356379824,1742347839455,-17657.91962322,0.00013699,2]
[356379825,1742347839465,-500.0,0.00013699,2]
[356379826,1742347839477,-17657.91962322,0.00013699,2]
[356379827,1742347839487,-17657.91962322,0.00013699,2]
[356379828,1742347839498,-500.0,0.00013699,2]
[356379829,1742347839508,-17657.91962322,0.00013699,2]
[356379830,1742347839519,-17657.91962322,0.00013699,2]
[356379831,1742347839530,-500.0,0.00013699,2]
[356379832,1742347839540,-17657.91962322,0.00013699,2]
[356379833,1742347839549,-17657.91962322,0.00013699,2]
[356379834,1742347839564,-500.0,0.00013699,2]
[356379835,1742347839574,-17657.91962322,0.00013699,2]
[356379836,1742347839583,-17657.91962322,0.00013699,2]
[356379837,1742347839593,-500.0,0.00013699,2]
[356379838,1742347839604,-17657.91962322,0.00013699,2]
[356379839,1742347839614,-500.0,0.00013699,2]
[356379840,1742347839624,-3187.94112333,0.00013699,2]
[356379841,1742347839640,-14469.97849989,0.00013699,2]
[356379842,1742347839651,-17657.91962322,0.00013699,2]
[356379843,1742347839660,-500.0,0.00013699,2]
[356379844,1742347839670,-17657.91962322,0.00013699,2]
[356379845,1742347839679,-17657.91962322,0.00013699,2]
[356379846,1742347839689,-500.0,0.00013699,2]
[356379847,1742347839698,-17657.91962322,0.00013699,2]
[356379848,1742347839708,-17657.91962322,0.00013699,2]
[356379849,1742347839718,-500.0,0.00013699,2]
[356379850,1742347839728,-17657.91962322,0.00013699,2]
[356379851,1742347839738,-338.13576909,0.00013699,2]
[356379852,1742347839748,-17657.91962322,0.00013699,2]
[356379853,1742347839758,-17657.91962322,0.00013699,2]
[356379854,1742347839768,-17657.91962322,0.00013699,2]
[356379855,1742347839778,-17657.91962322,0.00013699,2]
[356379856,1742347839789,-17657.91962322,0.00013699,2]
[356379857,1742347839799,-500.0,0.00013699,2]
[356379858,1742347839808,-17657.91962322,0.00013699,2]
[356379859,1742347839818,-500.0,0.00013699,2]
[356379860,1742347839829,-17657.91962322,0.00013699,2]
[356379861,1742347839839,-17657.91962322,0.00013699,2]
[356379862,1742347839848,-17657.91962322,0.00013699,2]
[356379863,1742347839860,-17657.91962322,0.00013699,2]
[356379864,1742347839869,-17657.91962322,0.00013699,2]
[356379865,1742347839879,-17657.91962322,0.00013699,2]
[356379866,1742347839889,-17657.91962322,0.00013699,2]
[356379867,1742347839899,-17657.91962322,0.00013699,2]
[356379868,1742347839909,-17657.91962322,0.00013699,2]
[356379869,1742347839918,-17657.91962322,0.00013699,2]
[356379870,1742347839927,-17657.91962322,0.00013699,2]
[356379871,1742347839945,-17657.91962322,0.00013699,2]
[356379872,1742347839955,-17657.91962322,0.00013699,2]
[356379873,1742347839964,-17657.91962322,0.00013699,2]
[356379874,1742347839973,-17657.91962322,0.00013699,2]
[356379875,1742347839982,-14463.71009168,0.00013699,2]
[356379913,1742347843792,-3194.20953154,0.00013699,2]
[356379914,1742347843802,-17657.91962322,0.00013699,2]
[356379915,1742347843813,-17657.91962322,0.00013699,2]
[356379916,1742347843824,-17657.91962322,0.00013699,2]
[356379917,1742347843834,-17657.91962322,0.00013699,2]
[356379918,1742347843850,-17657.91962322,0.00013699,2]
[356379919,1742347843865,-17657.91962322,0.00013699,2]
[356379920,1742347843876,-17657.91962322,0.00013699,2]
[356379921,1742347843886,-17657.91962322,0.00013699,2]
[356379922,1742347843896,-17657.91962322,0.00013699,2]
[356379923,1742347843906,-3022.08517789,0.00013699,2]
[356379924,1742347843919,-1639.88184041,0.00013699,2]
[356379948,1742348103100,612.17948552,8e-05,2]
[356379950,1742348733158,-150.0,0.000108,2]
[356379951,1742348733182,-347.541404,0.00010959,2]
[356379952,1742348733205,-404.778,0.00011082,2]
[356379953,1742348733231,-156.11923861,0.00011528,2]
[356379954,1742348733253,-71.47861301,0.0001186,2]
[356379955,1742348792624,500.0,0.00014,30]
[356379956,1742348820332,500.0,0.00014,30]
[356379957,1742348835077,-300.0,0.00011081,2]
[356379958,1742348835099,-150.695,0.00011082,2]
[356379959,1742348835120,-452.16865665,0.00011082,2]
[356380001,1742349038566,-300.0,0.00011081,2]
[356380002,1742349038576,-90.01634335,0.00011082,2]
[356380003,1742349038586,-1918.263,0.00011082,2]
[356380004,1742349038596,-2276.019,0.00011082,2]
[356380005,1742349038606,-160.0,0.00012032,2]
[356380006,1742349038615,-160.0,0.00012032,2]
[356380007,1742349038625,-417.85479977,0.00012032,2]
[356380008,1742349038634,-420.0,0.00012176,2]
[356380010,1742349038811,-391.60698031,0.00012468,2]
[356380011,1742349038822,-566.2148323,0.0001249,2]
[356380012,1742349038831,-11519.90638815,0.000125,2]
[356380013,1742349038841,-561.092,0.00012527,2]
[356380014,1742349038851,-559.61042871,0.00012529,2]
[356380015,1742349038861,-1507.98,0.00012529,2]
[356380016,1742349038870,-159.11761302,0.00012529,2]
[356380017,1742349038880,-500.0,0.0001253,2]
[356380018,1742349038889,-190.51433222,0.0001253,2]
[356380019,1742349038899,-316.819,0.0001253,2]
[356380020,1742349038908,-1507.98,0.0001253,2]
[356380021,1742349038918,-1507.98,0.0001253,2]
[356380022,1742349038927,-1507.98,0.0001253,2]
[356380023,1742349038937,-1507.98,0.0001253,2]
[356380024,1742349038947,-1507.98,0.0001253,2]
[356380025,1742349038957,-1507.98,0.0001253,2]
[356380026,1742349038970,-1507.98,0.0001253,2]
[356380027,1742349038980,-1507.98,0.0001253,2]
[356380028,1742349038989,-1507.98,0.0001253,2]
[356380029,1742349038999,-1507.98,0.0001253,2]
[356380030,1742349039010,-1507.98,0.0001253,2]
[356380031,1742349039019,-222000.0,0.00012531,2]
[356380032,1742349039029,-151.68872825,0.00012568,2]
[356380033,1742349039039,-500.0,0.00012573,2]
[356380034,1742349039049,-500.0,0.00012573,2]
[356380035,1742349039059,-12458.93820146,0.00012888,2]
[356380036,1742349039068,-1507.98,0.00012899,2]
[356380037,1742349039078,-1903.36328139,0.00013188,2]
[356380038,1742349039087,-926.4288624,0.00013288,2]
[356380039,1742349039097,-587.0,0.00013379,2]
[356380040,1742349039106,-150.0,0.0001339,2]
[356380041,1742349039116,-797.51472581,0.00013478,2]
[356380042,1742349039125,-1507.98,0.00013598,2]
[356380043,1742349039135,-3000.0,0.00013599,2]
[356380044,1742349039144,-151.0,0.000136,2]
[356380045,1742349039154,-500.0,0.00013673,2]
[356380046,1742349039163,-500.0,0.00013673,2]
[356380047,1742349039173,-500.0,0.00013673,2]
[356380048,1742349039182,-500.0,0.00013673,2]
[356380049,1742349039192,-500.72528979,0.00013673,2]
[356380050,1742349039201,-500.0,0.00013673,2]
[356380051,1742349039210,-500.0,0.00013673,2]
[356380052,1742349039220,-500.0,0.00013673,2]
[356380053,1742349039229,-500.0,0.00013673,2]
[356380054,1742349039239,-500.0,0.00013673,2]
[356380055,1742349039248,-500.0,0.00013673,2]
[356380056,1742349039257,-500.0,0.00013673,2]
[356380057,1742349039267,-500.0,0.00013673,2]
[356380058,1742349039276,-500.0,0.00013673,2]
[356380059,1742349039286,-500.0,0.00013673,2]
[356380060,1742349039295,-500.0,0.00013673,2]
[356380061,1742349039305,-500.0,0.00013673,2]
[356380062,1742349039315,-500.0,0.00013673,2]
[356380063,1742349039324,-500.0,0.00013673,2]
[356380064,1742349039334,-500.0,0.00013673,2]
[356380065,1742349039343,-1507.98,0.00013697,2]
[356380066,1742349039353,-1507.98,0.00013697,2]
[356380067,1742349039362,-1507.98,0.00013698,2]
[356380068,1742349039371,-1507.98,0.00013698,2]
[356380069,1742349039381,-1507.98,0.00013698,2]
[356380070,1742349039390,-1507.98,0.00013698,2]
[356380071,1742349039400,-1507.98,0.00013698,2]
[356380072,1742349039409,-1507.98,0.00013698,2]
[356380073,1742349039419,-1507.98,0.00013698,2]
[356380074,1742349039429,-1508.00932617,0.00013698,2]
[356380075,1742349039438,-3000.0,0.00013698,15]
[356380076,1742349039447,-3000.0,0.00013698,15]
[356380077,1742349039457,-3000.0,0.00013698,15]
[356380078,1742349039467,-3000.0,0.00013698,15]
[356380079,1742349039476,-3000.0,0.00013698,15]
[356380080,1742349039486,-347.541404,0.00013699,2]
[356380081,1742349039495,-3089.75721,0.00013699,2]
[356380082,1742349039505,-500.0,0.00013699,2]
[356380083,1742349039515,-500.0,0.00013699,2]
[356380084,1742349039524,-500.0,0.00013699,2]
[356380085,1742349039534,-500.0,0.00013699,2]
[356380086,1742349039543,-151.13075113,0.00013699,2]
[356380087,1742349039553,-500.0,0.00013699,2]
[356380088,1742349039563,-655.228,0.00013699,2]
[356380089,1742349039572,-300.0,0.00013699,2]
[356380090,1742349039582,-354.0,0.00013699,2]
[356380091,1742349039591,-402.47516316,0.00013699,2]
[356380092,1742349039601,-151.0,0.00013699,2]
[356380093,1742349039610,-151.534198,0.00013699,2]
[356380094,1742349039619,-500.0,0.00013699,2]
[356380095,1742349039629,-8958.91933766,0.00013699,2]
[356380096,1742349039639,-8958.91933766,0.00013699,2]
[356380097,1742349039648,-204.23730768,0.00013699,2]
[356380098,1742349039658,-8958.91933766,0.00013699,2]
[356380099,1742349039667,-8958.91933766,0.00013699,2]
[356380100,1742349039677,-8958.91933766,0.00013699,2]
[356380101,1742349039686,-8958.91933766,0.00013699,2]
[356380102,1742349039696,-8958.91933766,0.00013699,2]
[356380103,1742349039705,-8958.91933766,0.00013699,2]
[356380104,1742349039715,-8958.91933766,0.00013699,2]
[356380105,1742349039724,-8958.91933766,0.00013699,2]
[356380106,1742349039733,-8958.91933766,0.00013699,2]
[356380107,1742349039742,-8958.91933766,0.00013699,2]
[356380108,1742349039751,-8958.91933766,0.00013699,2]
[356380109,1742349039760,-8958.91933766,0.00013699,2]
[356380110,1742349039771,-8958.91933766,0.00013699,2]
[356380111,1742349039781,-8958.91933766,0.00013699,2]
[356380112,1742349039790,-8958.91933766,0.00013699,2]
[356380113,1742349039805,-8958.91933766,0.00013699,2]
[356380114,1742349039819,-8958.91933766,0.00013699,2]
[356380115,1742349039829,-8958.91933766,0.00013699,2]
[356380116,1742349039838,-8958.91933766,0.00013699,2]
[356380117,1742349039847,-8958.91933766,0.00013699,2]
[356380118,1742349039857,-8958.91933766,0.00013699,2]
[356380119,1742349039867,-8958.91933766,0.00013699,2]
[356380120,1742349039877,-8958.91933766,0.00013699,2]
[356380121,1742349039887,-8958.91933766,0.00013699,2]
[356380122,1742349039897,-8958.91933766,0.00013699,2]
[356380123,1742349039907,-8958.91933766,0.00013699,2]
[356380124,1742349039917,-8958.91933766,0.00013699,2]
[356380125,1742349039927,-8958.91933766,0.00013699,2]
[356380126,1742349039936,-8958.91933766,0.00013699,2]
[356380127,1742349039946,-8958.91933766,0.00013699,2]
[356380128,1742349039957,-8958.91933766,0.00013699,2]
[356380129,1742349039968,-8958.91933766,0.00013699,2]
[356380130,1742349039978,-8958.91933766,0.00013699,2]
[356380131,1742349039988,-8958.91933766,0.00013699,2]
[356380132,1742349039998,-8958.91933766,0.00013699,2]
[356380133,1742349040009,-8958.91933766,0.00013699,2]
[356380134,1742349040019,-8958.91933766,0.00013699,2]
[356380135,1742349040030,-8958.91933766,0.00013699,2]
[356380136,1742349040040,-8958.91933766,0.00013699,2]
[356380137,1742349040052,-8958.91933766,0.00013699,2]
[356380138,1742349040062,-8958.91933766,0.00013699,2]
[356380139,1742349040073,-8958.91933766,0.00013699,2]
[356380140,1742349040083,-8958.91933766,0.00013699,2]
[356380141,1742349040093,-8958.91933766,0.00013699,2]
[356380142,1742349040103,-8958.91933766,0.00013699,2]
[356380143,1742349040115,-8958.91933766,0.00013699,2]
[356380144,1742349040126,-8958.91933766,0.00013699,2]
[356380145,1742349040136,-8958.91933766,0.00013699,2]
[356380146,1742349040146,-8958.91933766,0.00013699,2]
[356380147,1742349040155,-8958.91933766,0.00013699,2]
[356380148,1742349040165,-8958.91933766,0.00013699,2]
[356380149,1742349040175,-8958.91933766,0.00013699,2]
[356380150,1742349040184,-8958.91933766,0.00013699,2]
[356380151,1742349040194,-7445.73434413,0.00013699,2]
[356380152,1742349040213,-1513.18499353,0.00013699,2]
[356380153,1742349040223,-8958.91933766,0.00013699,2]
[356380154,1742349040233,-8958.91933766,0.00013699,2]
[356380155,1742349040243,-8958.91933766,0.00013699,2]
[356380156,1742349040252,-8958.91933766,0.00013699,2]
[356380157,1742349040262,-8958.91933766,0.00013699,2]
[356380158,1742349040272,-5751.27444226,0.00013699,2]
[356380159,1742349040287,-3207.6448954,0.00013699,2]
[356380160,1742349040296,-8958.91933766,0.00013699,2]
[356380161,1742349040306,-8660.28869306,0.00013699,2]
[356380162,1742349040316,-8660.28869306,0.00013699,2]
[356380163,1742349040326,-8660.28869306,0.00013699,2]
[356380164,1742349040335,-8660.28869306,0.00013699,2]
[356380165,1742349040345,-8660.28869306,0.00013699,2]
[356380166,1742349040354,-8660.28869306,0.00013699,2]
[356380167,1742349040364,-8660.28869306,0.00013699,2]
[356380168,1742349040373,-8660.28869306,0.00013699,2]
[356380169,1742349040382,-8660.28869306,0.00013699,2]
[356380170,1742349040392,-8660.28869306,0.00013699,2]
[356380171,1742349040401,-8660.28869306,0.00013699,2]
[356380172,1742349040411,-8660.28869306,0.00013699,2]
[356380173,1742349040420,-8660.28869306,0.00013699,2]
[356380174,1742349040431,-8660.28869306,0.00013699,2]
[356380175,1742349040441,-8660.28869306,0.00013699,2]
[356380176,1742349040450,-8660.28869306,0.00013699,2]
[356380177,1742349040460,-2107.59177038,0.00013699,2]
[356380192,1742349043860,-831.37433834,0.00012001,2]
[356380193,1742349043873,-2.53223244,0.00012001,2]
[356380194,1742349044046,-1857.41324723,0.00013699,2]
[356380197,1742349046966,-1570.70369142,0.00013699,2]
[356380199,1742349218956,218.0764,0.000152,120]
[356380201,1742349533295,26981.9236,0.000152,120]
[356380202,1742349576820,82116.8333628,0.0001517,120]
[356380247,1742350035124,-899.87473006,0.00010808,2]
[356380248,1742350035144,-0.29889266,0.00010879,2]
[356380300,1742350231959,-160.0,0.00010835,2]
[356380302,1742350231970,-160.0,0.00010835,2]
[356380305,1742350231979,-417.85479977,0.00010835,2]
[356380307,1742350231989,-300.0,0.00010849,2]
[356380309,1742350231998,-12458.93820146,0.0001085,2]
[356380311,1742350232008,-833.90657078,0.0001085,2]
[356380313,1742350232018,-248.24386,0.00010959,2]
[356380315,1742350232031,-500.0,0.00011,2]
[356380317,1742350232041,-500.0,0.00011,2]
[356380319,1742350232051,-500.0,0.00011,2]
[356380321,1742350232060,-500.0,0.00011,2]
[356380322,1742350232070,-500.0,0.00011,2]
[356380324,1742350232079,-500.0,0.00011,2]
[356380326,1742350232091,-73.06789973,0.00011,2]
[356380329,1742350232111,-426.93210027,0.00011,2]
[356380330,1742350232121,-39.60456195,0.0001105,2]
[356380333,1742350232133,-462.95563518,0.0001105,2]
[356380334,1742350232143,-500.0,0.0001105,2]
[356380336,1742350232152,-500.0,0.0001105,2]
[356380338,1742350232162,-500.54938139,0.0001105,2]
[356380340,1742350232172,-500.0,0.0001105,2]
[356380341,1742350232183,-500.0,0.0001105,2]